[Event "Late-Titled-Tuesday-Blitz-September-19-2023"]
[Site "Chess.com"]
[Date "2023.09.19"]
[Round "4"]
[White "Dubs123"]
[Black "Hoshka"]
[Result "1-0"]
[WhiteElo "2305"]
[BlackElo "2048"]
[TimeControl "180+1"]
[EndTime "14:33:01 PDT"]
[Termination "Dubs123 won by resignation"]

1. d4 {[%clk 0:03:00.9]} 1... d5 {[%clk 0:02:59.5]} 2. c4 {[%clk 0:03:01.1]}
2... dxc4 {[%clk 0:02:59.3]} 3. Nf3 {[%clk 0:02:57.2]} 3... a6 {[%clk
0:02:58.5]} 4. e3 {[%clk 0:02:55.4]} 4... Nf6 {[%clk 0:02:52.4]} 5. Bxc4 {[%clk
0:02:54.7]} 5... e6 {[%clk 0:02:52]} 6. O-O {[%clk 0:02:52.6]} 6... b5 {[%clk
0:02:51.7]} 7. Be2 {[%clk 0:02:51.5]} 7... Bb7 {[%clk 0:02:51.5]} 8. b3 {[%clk
0:02:51.8]} 8... Nbd7 {[%clk 0:02:50.5]} 9. Bb2 {[%clk 0:02:52]} 9... Bd6 {[%clk
0:02:48.8]} 10. a4 {[%clk 0:02:51.8]} 10... O-O {[%clk 0:02:42.5]} 11. axb5
{[%clk 0:02:48.4]} 11... axb5 {[%clk 0:02:42]} 12. Rxa8 {[%clk 0:02:42.6]} 12...
Qxa8 {[%clk 0:02:41.2]} 13. Bxb5 {[%clk 0:02:43.1]} 13... Rd8 {[%clk 0:02:28.1]}
14. Nbd2 {[%clk 0:02:37.1]} 14... c5 {[%clk 0:02:27.5]} 15. Nc4 {[%clk
0:02:33.8]} 15... Be7 {[%clk 0:02:15.1]} 16. Bxd7 {[%clk 0:02:32.1]} 16... Rxd7
{[%clk 0:02:13.2]} 17. Nb6 {[%clk 0:02:31.7]} 17... Bxf3 {[%clk 0:02:08.9]} 18.
gxf3 {[%clk 0:02:27.8]} 18... Qa7 {[%clk 0:01:58.1]} 19. Nxd7 {[%clk 0:02:26.4]}
19... Qxd7 {[%clk 0:01:58.1]} 20. dxc5 {[%clk 0:02:25.8]} 20... Qc6 {[%clk
0:01:55.9]} 21. Bxf6 {[%clk 0:02:22.7]} 21... Bxf6 {[%clk 0:01:55.5]} 22. Qd6
{[%clk 0:02:20.6]} 1-0

[Event "Late-Titled-Tuesday-Blitz-September-19-2023"]
[Site "Chess.com"]
[Date "2023.09.19"]
[Round "4"]
[White "SandwichOSaumon"]
[Black "greekplayer1"]
[Result "0-1"]
[WhiteElo "2521"]
[BlackElo "2715"]
[TimeControl "180+1"]
[EndTime "14:33:25 PDT"]
[Termination "greekplayer1 won by resignation"]

1. e4 {[%clk 0:03:00.9]} 1... a6 {[%clk 0:02:53.9]} 2. c4 {[%clk 0:02:59.8]}
2... b5 {[%clk 0:02:53.8]} 3. cxb5 {[%clk 0:02:59.8]} 3... axb5 {[%clk
0:02:54.7]} 4. Bxb5 {[%clk 0:03:00.1]} 4... Bb7 {[%clk 0:02:55.5]} 5. Nc3 {[%clk
0:03:00]} 5... e6 {[%clk 0:02:55.9]} 6. Nge2 {[%clk 0:02:57.8]} 6... Nf6 {[%clk
0:02:56.2]} 7. d3 {[%clk 0:02:57.4]} 7... c6 {[%clk 0:02:55.2]} 8. Bc4 {[%clk
0:02:57.3]} 8... d5 {[%clk 0:02:54.2]} 9. Bb3 {[%clk 0:02:57.7]} 9... d4 {[%clk
0:02:53.6]} 10. Nb1 {[%clk 0:02:57.1]} 10... Be7 {[%clk 0:02:52.5]} 11. O-O
{[%clk 0:02:57.3]} 11... c5 {[%clk 0:02:53]} 12. f4 {[%clk 0:02:57.8]} 12... O-O
{[%clk 0:02:53.3]} 13. Nd2 {[%clk 0:02:58.4]} 13... Nc6 {[%clk 0:02:53.7]} 14.
Nf3 {[%clk 0:02:56.5]} 14... Nb4 {[%clk 0:02:54.1]} 15. Bc4 {[%clk 0:02:54.7]}
15... Qb6 {[%clk 0:02:50.8]} 16. a3 {[%clk 0:02:53.2]} 16... Nc6 {[%clk
0:02:42.1]} 17. Ng3 {[%clk 0:02:43.4]} 17... Na5 {[%clk 0:02:41.9]} 18. Ba2
{[%clk 0:02:43.2]} 18... c4 {[%clk 0:02:42]} 19. Kh1 {[%clk 0:02:38.8]} 19...
cxd3 {[%clk 0:02:41.7]} 20. Qxd3 {[%clk 0:02:39.7]} 20... Ba6 {[%clk 0:02:41.9]}
21. Qd1 {[%clk 0:02:22.7]} 21... Bxf1 {[%clk 0:02:41.6]} 22. Qxf1 {[%clk
0:02:23.6]} 22... Nb3 {[%clk 0:02:42]} 23. Bxb3 {[%clk 0:02:20]} 23... Qxb3
{[%clk 0:02:42.9]} 24. Nxd4 {[%clk 0:02:20.2]} 24... Qa4 {[%clk 0:02:42.3]} 25.
Be3 {[%clk 0:02:14.1]} 25... e5 {[%clk 0:02:42.3]} 26. fxe5 {[%clk 0:02:11.8]}
26... Ng4 {[%clk 0:02:41.5]} 27. Bf4 {[%clk 0:02:08]} 27... Qxd4 {[%clk
0:02:38.3]} 28. Nf5 {[%clk 0:02:01]} 28... Qd7 {[%clk 0:02:38.7]} 29. Rd1 {[%clk
0:02:00.7]} 29... Qe6 {[%clk 0:02:38.4]} 30. Rd5 {[%clk 0:01:57.4]} 30... Rad8
{[%clk 0:02:37.5]} 31. Qd3 {[%clk 0:01:57.4]} 31... Rxd5 {[%clk 0:02:37.3]} 32.
exd5 {[%clk 0:01:58.3]} 32... Nf2+ {[%clk 0:02:35.9]} 33. Kg1 {[%clk 0:01:58.2]}
33... Nxd3 {[%clk 0:02:36.7]} 34. dxe6 {[%clk 0:01:58.7]} 34... Bc5+ {[%clk
0:02:35.4]} 35. Be3 {[%clk 0:01:58.6]} 35... fxe6 {[%clk 0:02:34.4]} 36. Bxc5
{[%clk 0:01:58.3]} 36... Rxf5 {[%clk 0:02:34.8]} 37. Bd4 {[%clk 0:01:57.2]}
37... Nxe5 {[%clk 0:02:35]} 38. b4 {[%clk 0:01:57.2]} 38... Nc6 {[%clk
0:02:34.2]} 39. Bc5 {[%clk 0:01:57.7]} 39... e5 {[%clk 0:02:34.2]} 40. a4 {[%clk
0:01:57]} 40... e4 {[%clk 0:02:33.7]} 41. a5 {[%clk 0:01:57.5]} 41... Nxa5
{[%clk 0:02:33.3]} 0-1

[Event "Late-Titled-Tuesday-Blitz-September-19-2023"]
[Site "Chess.com"]
[Date "2023.09.19"]
[Round "4"]
[White "ozates"]
[Black "Hooded_Old_Man"]
[Result "1-0"]
[WhiteElo "2591"]
[BlackElo "2263"]
[TimeControl "180+1"]
[EndTime "14:34:14 PDT"]
[Termination "ozates won by resignation"]

1. e4 {[%clk 0:03:00.9]} 1... c5 {[%clk 0:02:59.4]} 2. Nf3 {[%clk 0:03:00.3]}
2... d6 {[%clk 0:02:59.6]} 3. c3 {[%clk 0:02:59.8]} 3... Nf6 {[%clk 0:02:59.7]}
4. Bd3 {[%clk 0:03:00.5]} 4... Nc6 {[%clk 0:02:59]} 5. Bc2 {[%clk 0:03:00.7]}
5... Bg4 {[%clk 0:02:59.2]} 6. d3 {[%clk 0:03:00.4]} 6... e6 {[%clk 0:02:59.2]}
7. Nbd2 {[%clk 0:03:00.7]} 7... Be7 {[%clk 0:03:00.1]} 8. h3 {[%clk 0:03:01.3]}
8... Bxf3 {[%clk 0:02:59.2]} 9. Nxf3 {[%clk 0:03:02.2]} 9... O-O {[%clk
0:02:59.4]} 10. O-O {[%clk 0:03:02.8]} 10... d5 {[%clk 0:02:59.6]} 11. exd5
{[%clk 0:03:00.7]} 11... exd5 {[%clk 0:02:59.5]} 12. d4 {[%clk 0:03:01]} 12...
Re8 {[%clk 0:02:57.4]} 13. Be3 {[%clk 0:02:59.5]} 13... c4 {[%clk 0:02:53.4]}
14. b3 {[%clk 0:02:57.6]} 14... b5 {[%clk 0:02:52.9]} 15. bxc4 {[%clk
0:02:50.8]} 15... dxc4 {[%clk 0:02:46.2]} 16. Qd2 {[%clk 0:02:28.9]} 16... Nd5
{[%clk 0:02:45.2]} 17. Bg5 {[%clk 0:02:22.7]} 17... Bxg5 {[%clk 0:02:42.6]} 18.
Nxg5 {[%clk 0:02:22.9]} 18... h6 {[%clk 0:02:35.8]} 19. Ne4 {[%clk 0:02:23.1]}
19... Qh4 {[%clk 0:02:27.1]} 20. Rfe1 {[%clk 0:02:22.1]} 20... a5 {[%clk
0:02:21.3]} 21. Nd6 {[%clk 0:02:16.3]} 21... Rxe1+ {[%clk 0:02:18.9]} 22. Rxe1
{[%clk 0:02:17.2]} 22... b4 {[%clk 0:02:15.5]} 23. Be4 {[%clk 0:02:06.1]} 23...
bxc3 {[%clk 0:02:10.6]} 24. Qd1 {[%clk 0:01:51.2]} 24... Rd8 {[%clk 0:02:00.7]}
25. Nxf7 {[%clk 0:01:46.9]} 25... Kxf7 {[%clk 0:01:56]} 26. Bxd5+ {[%clk
0:01:45.4]} 26... Rxd5 {[%clk 0:01:54.3]} 27. Qf3+ {[%clk 0:01:46]} 27... Kg6
{[%clk 0:01:44.8]} 28. Qxd5 {[%clk 0:01:38.8]} 28... Qxd4 {[%clk 0:01:44.8]} 29.
Qxc6+ {[%clk 0:01:36.4]} 1-0

[Event "Late-Titled-Tuesday-Blitz-September-19-2023"]
[Site "Chess.com"]
[Date "2023.09.19"]
[Round "4"]
[White "Sina_Movahed"]
[Black "SaqoChess_Twitch"]
[Result "1-0"]
[WhiteElo "2978"]
[BlackElo "2668"]
[TimeControl "180+1"]
[EndTime "14:34:46 PDT"]
[Termination "Sina_Movahed won by checkmate"]

1. e4 {[%clk 0:03:00.9]} 1... c5 {[%clk 0:03:00.2]} 2. Nf3 {[%clk 0:02:59]} 2...
d6 {[%clk 0:03:00.8]} 3. d4 {[%clk 0:02:58.9]} 3... cxd4 {[%clk 0:03:01.7]} 4.
Nxd4 {[%clk 0:02:57.7]} 4... Nf6 {[%clk 0:03:02.4]} 5. Nc3 {[%clk 0:02:58.4]}
5... g6 {[%clk 0:03:03.1]} 6. Be3 {[%clk 0:02:57.9]} 6... Bg7 {[%clk 0:03:03.8]}
7. f3 {[%clk 0:02:56.4]} 7... O-O {[%clk 0:03:04.4]} 8. Qd2 {[%clk 0:02:56.9]}
8... Nc6 {[%clk 0:03:05.1]} 9. O-O-O {[%clk 0:02:57.3]} 9... d5 {[%clk
0:03:05.5]} 10. Nxc6 {[%clk 0:02:57.3]} 10... bxc6 {[%clk 0:03:05.6]} 11. Bc4
{[%clk 0:02:57.9]} 11... e6 {[%clk 0:03:00.8]} 12. Bb3 {[%clk 0:02:52]} 12...
Qc7 {[%clk 0:03:00.9]} 13. h4 {[%clk 0:02:46]} 13... dxe4 {[%clk 0:03:01.1]} 14.
fxe4 {[%clk 0:02:28.7]} 14... c5 {[%clk 0:02:49.3]} 15. Bf4 {[%clk 0:02:19.4]}
15... e5 {[%clk 0:02:48.9]} 16. Bg5 {[%clk 0:02:18.7]} 16... Nh5 {[%clk
0:02:43.3]} 17. Nd5 {[%clk 0:02:15.9]} 17... Qb7 {[%clk 0:02:37.9]} 18. Ne7+
{[%clk 0:02:15.7]} 18... Kh8 {[%clk 0:02:37.9]} 19. Bd5 {[%clk 0:02:16.2]} 19...
Qa6 {[%clk 0:02:21.6]} 20. Bxa8 {[%clk 0:02:07.3]} 20... Qxa2 {[%clk 0:02:21.8]}
21. Qc3 {[%clk 0:02:07]} 21... Bg4 {[%clk 0:02:20]} 22. Bd5 {[%clk 0:02:03.4]}
22... Qa1+ {[%clk 0:02:16.5]} 23. Kd2 {[%clk 0:02:01.9]} 23... Bxd1 {[%clk
0:02:17.4]} 24. Rxd1 {[%clk 0:01:59.9]} 24... Qa6 {[%clk 0:02:18]} 25. Qc4
{[%clk 0:01:56.2]} 25... Qa5+ {[%clk 0:02:17.1]} 26. c3 {[%clk 0:01:53.8]} 26...
f6 {[%clk 0:02:12.5]} 27. Be3 {[%clk 0:01:51.1]} 27... f5 {[%clk 0:02:13]} 28.
exf5 {[%clk 0:01:47.8]} 28... gxf5 {[%clk 0:02:09]} 29. Kc2 {[%clk 0:01:48.1]}
29... e4 {[%clk 0:02:05.1]} 30. Bxc5 {[%clk 0:01:46.6]} 30... Rc8 {[%clk
0:02:02.9]} 31. Nxc8 {[%clk 0:01:42.6]} 31... Nf4 {[%clk 0:02:01.3]} 32. Bc6
{[%clk 0:01:39.3]} 32... Nd3 {[%clk 0:01:55]} 33. Bd4 {[%clk 0:01:37.5]} 33...
h5 {[%clk 0:01:44.2]} 34. Nd6 {[%clk 0:01:34.9]} 34... Bxd4 {[%clk 0:01:42.6]}
35. Qxd4+ {[%clk 0:01:33.7]} 35... Kh7 {[%clk 0:01:43.2]} 36. Nxe4 {[%clk
0:01:26.5]} 36... fxe4 {[%clk 0:01:41.9]} 37. Bxe4+ {[%clk 0:01:25.6]} 37... Kh6
{[%clk 0:01:42.4]} 38. Qf6# {[%clk 0:01:20.5]} 1-0

[Event "Late-Titled-Tuesday-Blitz-September-19-2023"]
[Site "Chess.com"]
[Date "2023.09.19"]
[Round "4"]
[White "BillieKimbah"]
[Black "AlexPapasimakopoulos"]
[Result "1-0"]
[WhiteElo "2973"]
[BlackElo "2757"]
[TimeControl "180+1"]
[EndTime "14:34:51 PDT"]
[Termination "BillieKimbah won by checkmate"]

1. Nf3 {[%clk 0:03:00.9]} 1... d5 {[%clk 0:02:59.4]} 2. g3 {[%clk 0:03:01.1]}
2... Nf6 {[%clk 0:02:58.3]} 3. Bg2 {[%clk 0:03:01]} 3... c6 {[%clk 0:02:59.2]}
4. O-O {[%clk 0:02:59.1]} 4... Bg4 {[%clk 0:02:59.6]} 5. d3 {[%clk 0:02:56.8]}
5... Nbd7 {[%clk 0:02:59]} 6. Qe1 {[%clk 0:02:56.8]} 6... e5 {[%clk 0:02:57.7]}
7. e4 {[%clk 0:02:56.7]} 7... d4 {[%clk 0:02:57]} 8. h3 {[%clk 0:02:54.9]} 8...
Bxf3 {[%clk 0:02:56.4]} 9. Bxf3 {[%clk 0:02:54.6]} 9... Bd6 {[%clk 0:02:56.5]}
10. a4 {[%clk 0:02:53.2]} 10... O-O {[%clk 0:02:55.9]} 11. Nd2 {[%clk 0:02:53]}
11... Ne8 {[%clk 0:02:54.2]} 12. Bg2 {[%clk 0:02:52.4]} 12... Nc7 {[%clk
0:02:53.4]} 13. f4 {[%clk 0:02:51.7]} 13... exf4 {[%clk 0:02:49.7]} 14. gxf4
{[%clk 0:02:51.1]} 14... Re8 {[%clk 0:02:49]} 15. Nc4 {[%clk 0:02:46.7]} 15...
Bf8 {[%clk 0:02:42.8]} 16. Qg3 {[%clk 0:02:46]} 16... Nb6 {[%clk 0:02:25.4]} 17.
Ne5 {[%clk 0:02:42.9]} 17... Nd7 {[%clk 0:02:23.7]} 18. Nf3 {[%clk 0:02:41.1]}
18... c5 {[%clk 0:02:22]} 19. f5 {[%clk 0:02:38.3]} 19... f6 {[%clk 0:02:21.8]}
20. Bf4 {[%clk 0:02:36.5]} 20... Na6 {[%clk 0:02:21.1]} 21. e5 {[%clk
0:02:26.1]} 21... fxe5 {[%clk 0:02:20.8]} 22. Nxe5 {[%clk 0:02:26.1]} 22... Nb4
{[%clk 0:02:11.3]} 23. Bxb7 {[%clk 0:02:05.1]} 23... Nxe5 {[%clk 0:02:09.1]} 24.
Bxe5 {[%clk 0:02:01.1]} 24... Nxc2 {[%clk 0:02:09.1]} 25. f6 {[%clk 0:01:54.1]}
25... Rxe5 {[%clk 0:02:08.4]} 26. Qxe5 {[%clk 0:01:50.3]} 26... Nxa1 {[%clk
0:02:08.1]} 27. Bxa8 {[%clk 0:01:05.9]} 27... Qxa8 {[%clk 0:02:01.9]} 28. f7+
{[%clk 0:01:03.9]} 28... Kh8 {[%clk 0:02:01]} 29. Qe8 {[%clk 0:01:03.9]} 29...
Qe4 {[%clk 0:01:53.5]} 30. Qxf8# {[%clk 0:00:49.7]} 1-0

[Event "Late-Titled-Tuesday-Blitz-September-19-2023"]
[Site "Chess.com"]
[Date "2023.09.19"]
[Round "4"]
[White "SAInt_666"]
[Black "Michalczak"]
[Result "1-0"]
[WhiteElo "2664"]
[BlackElo "2504"]
[TimeControl "180+1"]
[EndTime "14:34:55 PDT"]
[Termination "SAInt_666 won by resignation"]

1. g3 {[%clk 0:03:00.1]} 1... d5 {[%clk 0:02:58.9]} 2. Bg2 {[%clk 0:02:59.6]}
2... e5 {[%clk 0:02:58.1]} 3. Nf3 {[%clk 0:02:57.5]} 3... Nc6 {[%clk 0:02:57.1]}
4. O-O {[%clk 0:02:56.9]} 4... Be6 {[%clk 0:02:50.2]} 5. d3 {[%clk 0:02:55.1]}
5... f6 {[%clk 0:02:45.9]} 6. Nbd2 {[%clk 0:02:55.2]} 6... Qd7 {[%clk
0:02:45.5]} 7. c3 {[%clk 0:02:51.9]} 7... g5 {[%clk 0:02:45]} 8. b4 {[%clk
0:02:50.8]} 8... g4 {[%clk 0:02:44.3]} 9. Nh4 {[%clk 0:02:47.4]} 9... Nge7
{[%clk 0:02:41.5]} 10. b5 {[%clk 0:02:43.1]} 10... Nd8 {[%clk 0:02:41.1]} 11. c4
{[%clk 0:02:30.7]} 11... Ng6 {[%clk 0:02:30.1]} 12. e4 {[%clk 0:02:22.1]} 12...
Nxh4 {[%clk 0:02:28.2]} 13. gxh4 {[%clk 0:02:23]} 13... dxc4 {[%clk 0:02:09.3]}
14. Nxc4 {[%clk 0:02:14.6]} 14... Nf7 {[%clk 0:01:45.9]} 15. Be3 {[%clk
0:01:58.4]} 15... O-O-O {[%clk 0:01:35.5]} 16. Qa4 {[%clk 0:01:54.5]} 16... a6
{[%clk 0:01:28]} 17. Rfc1 {[%clk 0:01:46.4]} 17... Kb8 {[%clk 0:01:09.2]} 18.
Rab1 {[%clk 0:01:44.7]} 18... Bxc4 {[%clk 0:00:57.4]} 19. Qxc4 {[%clk
0:01:34.7]} 19... axb5 {[%clk 0:00:54.4]} 20. Rxb5 {[%clk 0:01:35.6]} 20... Bh6
{[%clk 0:00:52.7]} 21. Rxb7+ {[%clk 0:01:30.1]} 21... Kxb7 {[%clk 0:00:51.9]}
22. Rb1+ {[%clk 0:01:30.3]} 1-0

[Event "Late-Titled-Tuesday-Blitz-September-19-2023"]
[Site "Chess.com"]
[Date "2023.09.19"]
[Round "4"]
[White "Iball95"]
[Black "Andrej2004"]
[Result "1-0"]
[WhiteElo "2762"]
[BlackElo "2542"]
[TimeControl "180+1"]
[EndTime "14:35:01 PDT"]
[Termination "Iball95 won by checkmate"]

1. e4 {[%clk 0:03:00.1]} 1... b6 {[%clk 0:02:54.4]} 2. d4 {[%clk 0:02:59.5]}
2... Bb7 {[%clk 0:02:53.5]} 3. Nc3 {[%clk 0:02:59.8]} 3... g6 {[%clk 0:02:52.8]}
4. Nf3 {[%clk 0:02:58.6]} 4... Bg7 {[%clk 0:02:53.3]} 5. Be3 {[%clk 0:02:53.7]}
5... d6 {[%clk 0:02:53.6]} 6. h4 {[%clk 0:02:51.8]} 6... h6 {[%clk 0:02:52.8]}
7. e5 {[%clk 0:02:50.9]} 7... e6 {[%clk 0:02:49.3]} 8. Bd3 {[%clk 0:02:49.9]}
8... Nd7 {[%clk 0:02:47.7]} 9. exd6 {[%clk 0:02:24.5]} 9... cxd6 {[%clk
0:02:46.5]} 10. Ne4 {[%clk 0:02:24.6]} 10... Qe7 {[%clk 0:02:41]} 11. c3 {[%clk
0:02:19.1]} 11... Ngf6 {[%clk 0:02:39.3]} 12. Qc2 {[%clk 0:02:18.9]} 12... Nxe4
{[%clk 0:02:33.8]} 13. Bxe4 {[%clk 0:02:19.8]} 13... Bxe4 {[%clk 0:02:34.1]} 14.
Qxe4 {[%clk 0:02:18.6]} 14... d5 {[%clk 0:02:33.4]} 15. Qd3 {[%clk 0:02:18.5]}
15... O-O {[%clk 0:02:29.4]} 16. g4 {[%clk 0:02:13.2]} 16... f5 {[%clk
0:02:20.7]} 17. gxf5 {[%clk 0:02:07.8]} 17... Rxf5 {[%clk 0:02:21.6]} 18. Nd2
{[%clk 0:02:06.7]} 18... Kh7 {[%clk 0:02:08.8]} 19. O-O-O {[%clk 0:02:05.5]}
19... e5 {[%clk 0:02:05]} 20. h5 {[%clk 0:01:57.3]} 20... e4 {[%clk 0:02:03.4]}
21. hxg6+ {[%clk 0:01:57.1]} 21... Kxg6 {[%clk 0:01:56.1]} 22. Rdg1+ {[%clk
0:01:57.1]} 22... Kh7 {[%clk 0:01:56.4]} 23. Qe2 {[%clk 0:01:54.4]} 23... Rg8
{[%clk 0:01:51]} 24. Qg4 {[%clk 0:01:51.7]} 24... Qe6 {[%clk 0:01:46.9]} 25.
Bxh6 {[%clk 0:01:42.5]} 25... Bxh6 {[%clk 0:00:53.6]} 26. Rxh6+ {[%clk
0:01:40.3]} 26... Qxh6 {[%clk 0:00:48.8]} 27. Qxg8# {[%clk 0:01:38.8]} 1-0

[Event "Late-Titled-Tuesday-Blitz-September-19-2023"]
[Site "Chess.com"]
[Date "2023.09.19"]
[Round "4"]
[White "FairChess_on_YouTube"]
[Black "GadimbayliA"]
[Result "1-0"]
[WhiteElo "3076"]
[BlackElo "2830"]
[TimeControl "180+1"]
[EndTime "14:35:04 PDT"]
[Termination "FairChess_on_YouTube won by resignation"]

1. c4 {[%clk 0:03:00.9]} 1... Nf6 {[%clk 0:02:58.5]} 2. Nc3 {[%clk 0:03:00.2]}
2... c5 {[%clk 0:02:54.6]} 3. g3 {[%clk 0:02:59.1]} 3... Nc6 {[%clk 0:02:53.8]}
4. Bg2 {[%clk 0:02:58.9]} 4... g6 {[%clk 0:02:54.2]} 5. e3 {[%clk 0:02:55.7]}
5... Bg7 {[%clk 0:02:54.3]} 6. d4 {[%clk 0:02:55.4]} 6... cxd4 {[%clk
0:02:54.5]} 7. exd4 {[%clk 0:02:56]} 7... d6 {[%clk 0:02:55.4]} 8. Nge2 {[%clk
0:02:50.6]} 8... O-O {[%clk 0:02:55.3]} 9. O-O {[%clk 0:02:50.6]} 9... Bf5
{[%clk 0:02:56]} 10. b3 {[%clk 0:02:49.6]} 10... Qd7 {[%clk 0:02:54.6]} 11. Re1
{[%clk 0:02:48.6]} 11... Bh3 {[%clk 0:02:54.6]} 12. Bh1 {[%clk 0:02:46]} 12...
e5 {[%clk 0:02:18.4]} 13. Ba3 {[%clk 0:02:42.2]} 13... exd4 {[%clk 0:02:09.5]}
14. Nxd4 {[%clk 0:02:42]} 14... Nxd4 {[%clk 0:02:10.4]} 15. Qxd4 {[%clk
0:02:41.7]} 15... Ng4 {[%clk 0:02:11.1]} 16. Qd2 {[%clk 0:02:41.2]} 16... Rfe8
{[%clk 0:02:07.3]} 17. Rad1 {[%clk 0:02:35.8]} 17... Qf5 {[%clk 0:02:01]} 18.
Nd5 {[%clk 0:02:31.7]} 18... Ne5 {[%clk 0:01:37.6]} 19. f4 {[%clk 0:02:31.6]}
19... Nc6 {[%clk 0:01:33.7]} 20. Bb2 {[%clk 0:02:31.1]} 20... Bg4 {[%clk
0:01:28.4]} 21. Rc1 {[%clk 0:02:17.1]} 21... Rad8 {[%clk 0:01:17.9]} 22. Bc3
{[%clk 0:01:56]} 22... h5 {[%clk 0:01:08.2]} 23. Qb2 {[%clk 0:01:54]} 23... Bxc3
{[%clk 0:00:56.7]} 24. Qxc3 {[%clk 0:01:54.9]} 24... Re6 {[%clk 0:00:48.8]} 25.
Be4 {[%clk 0:01:44.5]} 1-0

[Event "Late-Titled-Tuesday-Blitz-September-19-2023"]
[Site "Chess.com"]
[Date "2023.09.19"]
[Round "4"]
[White "Nick12772"]
[Black "floplover"]
[Result "0-1"]
[WhiteElo "2351"]
[BlackElo "2311"]
[TimeControl "180+1"]
[EndTime "14:35:11 PDT"]
[Termination "floplover won by resignation"]

1. e4 {[%clk 0:03:00.9]} 1... c6 {[%clk 0:02:58.9]} 2. Nc3 {[%clk 0:03:00.6]}
2... d5 {[%clk 0:02:57.7]} 3. Nf3 {[%clk 0:03:01.5]} 3... dxe4 {[%clk
0:02:56.3]} 4. Nxe4 {[%clk 0:03:02.4]} 4... Nf6 {[%clk 0:02:56.4]} 5. Qe2 {[%clk
0:03:02.8]} 5... Nxe4 {[%clk 0:02:52.5]} 6. Qxe4 {[%clk 0:03:03.7]} 6... Qa5
{[%clk 0:02:51.8]} 7. Bc4 {[%clk 0:03:02]} 7... Bf5 {[%clk 0:02:51.8]} 8. Bxf7+
{[%clk 0:02:49.8]} 8... Kxf7 {[%clk 0:02:48.8]} 9. Ne5+ {[%clk 0:02:50]} 9...
Ke6 {[%clk 0:02:36.3]} 10. Nxc6+ {[%clk 0:02:13.9]} 10... Bxe4 {[%clk
0:02:30.4]} 11. Nxa5 {[%clk 0:02:14.1]} 11... Bxg2 {[%clk 0:02:18.2]} 12. Rg1
{[%clk 0:02:14]} 12... Bc6 {[%clk 0:02:15.5]} 13. d4 {[%clk 0:02:05.3]} 13... g6
{[%clk 0:02:14.7]} 14. c4 {[%clk 0:02:00.1]} 14... Kf7 {[%clk 0:02:12.5]} 15. d5
{[%clk 0:01:58.5]} 15... Bd7 {[%clk 0:02:10.4]} 16. Nxb7 {[%clk 0:01:58.2]}
16... Bg7 {[%clk 0:02:08.5]} 17. Nc5 {[%clk 0:01:51.7]} 17... Rc8 {[%clk
0:02:05.7]} 18. Nxd7 {[%clk 0:01:45]} 18... Nxd7 {[%clk 0:02:06.6]} 19. Rg4
{[%clk 0:01:34.8]} 19... Ne5 {[%clk 0:02:06.4]} 20. Rf4+ {[%clk 0:01:34.3]}
20... Kg8 {[%clk 0:02:04]} 21. Re4 {[%clk 0:01:21]} 21... Rxc4 {[%clk 0:02:02]}
22. Rxc4 {[%clk 0:01:15.9]} 22... Nxc4 {[%clk 0:02:02.9]} 23. Rb1 {[%clk
0:01:11.8]} 23... Rd8 {[%clk 0:02:00.5]} 24. b3 {[%clk 0:01:11.1]} 24... Nb6
{[%clk 0:01:59.9]} 25. Bg5 {[%clk 0:01:06.1]} 25... Rxd5 {[%clk 0:01:59.6]} 26.
Be3 {[%clk 0:01:03.9]} 26... Be5 {[%clk 0:01:49.5]} 27. h3 {[%clk 0:00:59]}
27... Bd4 {[%clk 0:01:39.4]} 28. Ke2 {[%clk 0:00:56.8]} 28... Bxe3 {[%clk
0:01:38.9]} 29. Kxe3 {[%clk 0:00:57.7]} 29... Kf7 {[%clk 0:01:31.5]} 30. Rc1
{[%clk 0:00:55.8]} 30... Rh5 {[%clk 0:01:29.7]} 31. Rc7 {[%clk 0:00:51.5]} 31...
Nd5+ {[%clk 0:01:28.1]} 0-1

[Event "Late-Titled-Tuesday-Blitz-September-19-2023"]
[Site "Chess.com"]
[Date "2023.09.19"]
[Round "4"]
[White "Hrant_ChessMood"]
[Black "fyall777"]
[Result "1-0"]
[WhiteElo "2899"]
[BlackElo "2556"]
[TimeControl "180+1"]
[EndTime "14:35:24 PDT"]
[Termination "Hrant_ChessMood won on time"]

1. d4 {[%clk 0:02:43.7]} 1... Nf6 {[%clk 0:02:58]} 2. c4 {[%clk 0:02:42.6]} 2...
e6 {[%clk 0:02:40.3]} 3. Nc3 {[%clk 0:02:40.8]} 3... Bb4 {[%clk 0:02:39.7]} 4.
e3 {[%clk 0:02:40.6]} 4... c5 {[%clk 0:02:39.4]} 5. Bd3 {[%clk 0:02:39.4]} 5...
Bxc3+ {[%clk 0:02:36.9]} 6. bxc3 {[%clk 0:02:36.7]} 6... d6 {[%clk 0:02:37.8]}
7. Ne2 {[%clk 0:02:29.3]} 7... e5 {[%clk 0:02:34.4]} 8. O-O {[%clk 0:02:28.9]}
8... O-O {[%clk 0:02:33.9]} 9. Ng3 {[%clk 0:02:28.6]} 9... Nc6 {[%clk 0:02:33]}
10. a4 {[%clk 0:02:26]} 10... Re8 {[%clk 0:02:27.4]} 11. a5 {[%clk 0:02:24.7]}
11... Nxa5 {[%clk 0:02:23.3]} 12. e4 {[%clk 0:02:16.9]} 12... cxd4 {[%clk
0:02:09.9]} 13. cxd4 {[%clk 0:02:16]} 13... exd4 {[%clk 0:02:02.5]} 14. Bg5
{[%clk 0:02:09.8]} 14... Nc6 {[%clk 0:01:58.2]} 15. Nh5 {[%clk 0:02:09.1]} 15...
Ne5 {[%clk 0:01:50.9]} 16. h3 {[%clk 0:01:47.7]} 16... Be6 {[%clk 0:01:37.6]}
17. f4 {[%clk 0:01:43.9]} 17... Nxd3 {[%clk 0:01:22.2]} 18. Qxd3 {[%clk
0:01:44.8]} 18... Qc8 {[%clk 0:01:09.3]} 19. Bxf6 {[%clk 0:01:43.4]} 19... Qxc4
{[%clk 0:00:52.7]} 20. Qg3 {[%clk 0:01:42.2]} 20... g6 {[%clk 0:00:52.1]} 21.
Qg5 {[%clk 0:01:40.2]} 1-0